[Event "*** Titled Tuesday Blitz"]
[Site "Chess.com"]
[Date "2019.04.02"]
[Round "9"]
[White "almaguerjm"]
[Black "ristingho"]
[Result "1-0"]
[WhiteElo "2322"]
[BlackElo "2470"]
[TimeControl "180+2"]
[EndTime "16:04:44 PDT"]
[Termination "almaguerjm won by resignation"]

1. d4 {[%clk 0:03:01.9]} 1... Nf6 {[%clk 0:02:57.5]} 2. Nf3 {[%clk 0:02:59.8]}
2... c5 {[%clk 0:02:58]} 3. d5 {[%clk 0:03:00.6]} 3... b5 {[%clk 0:02:58]} 4. e4
{[%clk 0:02:56.3]} 4... Nxe4 {[%clk 0:02:56.5]} 5. Bd3 {[%clk 0:02:50.2]} 5...
Nf6 {[%clk 0:02:46.5]} 6. Bxb5 {[%clk 0:02:50.6]} 6... Bb7 {[%clk 0:02:40.1]} 7.
Nc3 {[%clk 0:02:50.4]} 7... g6 {[%clk 0:02:40.4]} 8. O-O {[%clk 0:02:48.2]} 8...
Bg7 {[%clk 0:02:41.8]} 9. d6 {[%clk 0:02:49.4]} 9... O-O {[%clk 0:02:39.1]} 10.
dxe7 {[%clk 0:02:43.6]} 10... Qxe7 {[%clk 0:02:41]} 11. Re1 {[%clk 0:02:44.3]}
11... Qd8 {[%clk 0:02:41.3]} 12. Bg5 {[%clk 0:02:31.4]} 12... d5 {[%clk
0:02:39.2]} 13. Qd2 {[%clk 0:02:22.7]} 13... d4 {[%clk 0:02:33.4]} 14. Bxf6
{[%clk 0:02:16.3]} 14... Qxf6 {[%clk 0:02:35.3]} 15. Ne4 {[%clk 0:02:17.2]}
15... Qb6 {[%clk 0:02:36.1]} 16. Bc4 {[%clk 0:02:08.5]} 16... Nd7 {[%clk
0:02:32.9]} 17. a4 {[%clk 0:02:07.6]} 17... Qc7 {[%clk 0:02:28.8]} 18. a5 {[%clk
0:02:04.7]} 18... Rab8 {[%clk 0:02:28.1]} 19. b3 {[%clk 0:01:37.5]} 19... Ne5
{[%clk 0:02:05.6]} 20. Nxe5 {[%clk 0:01:34.4]} 20... Bxe5 {[%clk 0:02:07.5]} 21.
g3 {[%clk 0:01:23.2]} 21... Rbe8 {[%clk 0:02:06.7]} 22. Qh6 {[%clk 0:01:14.3]}
22... Bg7 {[%clk 0:02:02.6]} 23. Qh4 {[%clk 0:01:08]} 23... h6 {[%clk
0:01:37.4]} 24. Nf6+ {[%clk 0:01:04.5]} 24... Bxf6 {[%clk 0:01:37.8]} 25. Qxf6
{[%clk 0:01:06.4]} 25... Qc6 {[%clk 0:01:31]} 26. Qxc6 {[%clk 0:00:45.2]} 26...
Bxc6 {[%clk 0:01:32.9]} 27. f4 {[%clk 0:00:36.2]} 27... Kg7 {[%clk 0:01:30.9]}
28. Kf2 {[%clk 0:00:37.1]} 28... Re4 {[%clk 0:01:23.7]} 29. Rxe4 {[%clk
0:00:36.8]} 29... Bxe4 {[%clk 0:01:25.6]} 30. Re1 {[%clk 0:00:27.3]} 30... f5
{[%clk 0:01:24.9]} 31. Bd3 {[%clk 0:00:19.5]} 31... Re8 {[%clk 0:01:25.2]} 32.
Ra1 {[%clk 0:00:18.4]} 32... Bxd3 {[%clk 0:01:23.8]} 33. cxd3 {[%clk 0:00:20.3]}
33... Rb8 {[%clk 0:01:24.2]} 34. Rc1 {[%clk 0:00:20.5]} 34... Rxb3 {[%clk
0:01:24.9]} 35. Rxc5 {[%clk 0:00:21.6]} 35... Rxd3 {[%clk 0:01:23.8]} 36. Rc7+
{[%clk 0:00:22.8]} 36... Kf6 {[%clk 0:01:24.9]} 37. Rxa7 {[%clk 0:00:21.1]}
37... Rd2+ {[%clk 0:01:22.4]} 38. Kf3 {[%clk 0:00:19.5]} 38... Rxh2 {[%clk
0:01:21.5]} 39. Ra6+ {[%clk 0:00:20.9]} 39... Kf7 {[%clk 0:01:22.4]} 40. Ra7+
{[%clk 0:00:21.9]} 40... Ke6 {[%clk 0:01:23.7]} 41. Ra6+ {[%clk 0:00:22.5]}
41... Kd5 {[%clk 0:01:25.2]} 42. Rxg6 {[%clk 0:00:23.5]} 42... d3 {[%clk
0:01:26.7]} 43. Rg8 {[%clk 0:00:24.3]} 43... Kc4 {[%clk 0:01:26.3]} 44. a6
{[%clk 0:00:25.1]} 44... Kc3 {[%clk 0:01:25.1]} 45. a7 {[%clk 0:00:25.3]} 45...
d2 {[%clk 0:01:21.6]} 46. Rc8+ {[%clk 0:00:16.9]} 46... Kb3 {[%clk 0:01:17.8]}
47. Rd8 {[%clk 0:00:18.1]} 47... d1=Q+ {[%clk 0:01:18.7]} 48. Rxd1 {[%clk
0:00:18.9]} 48... Ra2 {[%clk 0:01:20.6]} 49. Rd7 {[%clk 0:00:19.9]} 49... Kc3
{[%clk 0:01:20.6]} 50. Rh7 {[%clk 0:00:20.7]} 50... Kd3 {[%clk 0:01:20.9]} 51.
Rd7+ {[%clk 0:00:21.5]} 51... Kc3 {[%clk 0:01:21.3]} 52. Ke3 {[%clk 0:00:23]}
52... Ra3 {[%clk 0:01:20.9]} 53. Rc7+ {[%clk 0:00:22.7]} 53... Kb4+ {[%clk
0:01:21.2]} 54. Kd4 {[%clk 0:00:23.9]} 54... Kb5 {[%clk 0:01:22.8]} 55. Ke5
{[%clk 0:00:25.1]} 55... Kb6 {[%clk 0:01:23.8]} 56. Rh7 {[%clk 0:00:26.2]} 56...
Ra5+ {[%clk 0:01:23.7]} 57. Kf6 {[%clk 0:00:27.3]} 1-0

[Event "*** Titled Tuesday Blitz"]
[Site "Chess.com"]
[Date "2019.04.02"]
[Round "9"]
[White "TheBigBadChessDad"]
[Black "Walter_White_Poland"]
[Result "1-0"]
[WhiteElo "2229"]
[BlackElo "2245"]
[TimeControl "180+2"]
[EndTime "16:04:49 PDT"]
[Termination "TheBigBadChessDad won by resignation"]

1. d4 {[%clk 0:03:01.9]} 1... Nf6 {[%clk 0:02:59.8]} 2. Nf3 {[%clk 0:03:01.2]}
2... c5 {[%clk 0:03:00.4]} 3. e3 {[%clk 0:03:00.3]} 3... b6 {[%clk 0:02:47.5]}
4. Nbd2 {[%clk 0:02:59.6]} 4... Bb7 {[%clk 0:02:48.1]} 5. b3 {[%clk 0:02:59.8]}
5... g6 {[%clk 0:02:43.6]} 6. Bb2 {[%clk 0:03:00.4]} 6... Bg7 {[%clk 0:02:44.5]}
7. dxc5 {[%clk 0:03:00.6]} 7... bxc5 {[%clk 0:02:39.7]} 8. c4 {[%clk 0:03:01.2]}
8... O-O {[%clk 0:02:33.8]} 9. Be2 {[%clk 0:03:00.9]} 9... d6 {[%clk 0:02:30.2]}
10. O-O {[%clk 0:03:01.2]} 10... a5 {[%clk 0:02:30.1]} 11. a3 {[%clk 0:02:59.2]}
11... Nc6 {[%clk 0:02:26.2]} 12. Qc2 {[%clk 0:02:58.1]} 12... a4 {[%clk
0:02:25.2]} 13. bxa4 {[%clk 0:02:37.9]} 13... Qa5 {[%clk 0:02:22.3]} 14. Rab1
{[%clk 0:02:38.3]} 14... Rfb8 {[%clk 0:02:13.7]} 15. Bd1 {[%clk 0:02:11.6]}
15... Bc8 {[%clk 0:02:05.1]} 16. Bc3 {[%clk 0:02:11.8]} 16... Qa6 {[%clk
0:01:59.7]} 17. Rb5 {[%clk 0:02:12.1]} 17... Bd7 {[%clk 0:01:46.3]} 18. Ne4
{[%clk 0:02:00.9]} 18... Bf5 {[%clk 0:01:17.9]} 19. Bxf6 {[%clk 0:01:54.5]}
19... exf6 {[%clk 0:00:54.9]} 20. Nfd2 {[%clk 0:01:55.4]} 20... Re8 {[%clk
0:00:46.6]} 21. f3 {[%clk 0:01:56.1]} 21... Ne5 {[%clk 0:00:37.3]} 22. g4 {[%clk
0:01:39.2]} 22... Bd7 {[%clk 0:00:36.7]} 23. Kg2 {[%clk 0:01:25.9]} 23... Bxb5
{[%clk 0:00:31.5]} 24. cxb5 {[%clk 0:01:27]} 24... Qb6 {[%clk 0:00:27.6]} 25.
Nc4 {[%clk 0:01:20.2]} 25... Nxc4 {[%clk 0:00:27.7]} 26. Qxc4 {[%clk 0:01:21.4]}
26... Qa5 {[%clk 0:00:16.4]} 27. Bb3 {[%clk 0:01:13.7]} 27... Ra7 {[%clk
0:00:15.1]} 28. Nxd6 {[%clk 0:01:11]} 28... Qd2+ {[%clk 0:00:14.7]} 29. Rf2
{[%clk 0:01:09.7]} 29... Qxd6 {[%clk 0:00:16.6]} 30. a5 {[%clk 0:01:08.7]} 30...
Ree7 {[%clk 0:00:12.7]} 31. a6 {[%clk 0:01:01.7]} 31... Qb6 {[%clk 0:00:12]} 32.
Rd2 {[%clk 0:00:56.2]} 32... Bh6 {[%clk 0:00:11.5]} 33. f4 {[%clk 0:00:51.3]}
33... Rxe3 {[%clk 0:00:10.8]} 34. a4 {[%clk 0:00:42.8]} 34... Qa5 {[%clk
0:00:08.9]} 35. Rd6 {[%clk 0:00:39.8]} 35... Bxf4 {[%clk 0:00:08.7]} 36. Qxf4
{[%clk 0:00:39.2]} 36... Qe1 {[%clk 0:00:07.4]} 37. Bc4 {[%clk 0:00:32.7]} 37...
Qc3 {[%clk 0:00:05.7]} 38. Qxf6 {[%clk 0:00:32]} 38... Qxf6 {[%clk 0:00:06.1]}
39. Rxf6 {[%clk 0:00:33.2]} 39... Re4 {[%clk 0:00:06.3]} 40. b6 {[%clk
0:00:34.5]} 40... Rd7 {[%clk 0:00:05.1]} 41. b7 {[%clk 0:00:35.2]} 41... Re3
{[%clk 0:00:05.4]} 42. b8=Q+ {[%clk 0:00:35.1]} 1-0

[Event "*** Titled Tuesday Blitz"]
[Site "Chess.com"]
[Date "2019.04.02"]
[Round "9"]
[White "Last7Samurai"]
[Black "Fy_Rakotomaharo"]
[Result "1-0"]
[WhiteElo "2742"]
[BlackElo "2632"]
[TimeControl "180+2"]
[EndTime "16:04:58 PDT"]
[Termination "Last7Samurai won by resignation"]

1. e4 {[%clk 0:02:59.3]} 1... c5 {[%clk 0:03:01.2]} 2. c3 {[%clk 0:03:00.1]}
2... d5 {[%clk 0:03:00.3]} 3. exd5 {[%clk 0:03:02]} 3... Qxd5 {[%clk 0:03:01.5]}
4. d4 {[%clk 0:03:02.7]} 4... e6 {[%clk 0:03:00.3]} 5. Nf3 {[%clk 0:03:02.6]}
5... Nf6 {[%clk 0:03:00.9]} 6. a3 {[%clk 0:03:00.9]} 6... Nc6 {[%clk 0:02:58.3]}
7. Be3 {[%clk 0:03:01.2]} 7... cxd4 {[%clk 0:02:38]} 8. cxd4 {[%clk 0:03:03.1]}
8... Be7 {[%clk 0:02:31.5]} 9. Nc3 {[%clk 0:03:01.7]} 9... Qa5 {[%clk
0:02:33.1]} 10. Bd3 {[%clk 0:03:01.1]} 10... O-O {[%clk 0:02:32.9]} 11. O-O
{[%clk 0:03:00.3]} 11... Bd7 {[%clk 0:02:21.7]} 12. b4 {[%clk 0:02:53.5]} 12...
Qh5 {[%clk 0:02:20.1]} 13. h3 {[%clk 0:02:48.3]} 13... Rfd8 {[%clk 0:02:11.3]}
14. Re1 {[%clk 0:02:47.6]} 14... Be8 {[%clk 0:02:04.6]} 15. Qe2 {[%clk
0:02:42.9]} 15... Rac8 {[%clk 0:01:58.1]} 16. Rac1 {[%clk 0:02:39.3]} 16... a5
{[%clk 0:01:59.2]} 17. b5 {[%clk 0:02:38.5]} 17... Nb8 {[%clk 0:01:59.9]} 18.
Qb2 {[%clk 0:02:29.2]} 18... Nd5 {[%clk 0:01:45.3]} 19. Nxd5 {[%clk 0:02:25.4]}
19... Qxd5 {[%clk 0:01:46.6]} 20. Ne5 {[%clk 0:02:18.6]} 20... Nd7 {[%clk
0:01:41.1]} 21. Nc4 {[%clk 0:02:08.5]} 21... a4 {[%clk 0:01:25.5]} 22. Qb1
{[%clk 0:02:05.7]} 22... Nf6 {[%clk 0:01:19.1]} 23. Nb6 {[%clk 0:02:00.8]} 23...
Rxc1 {[%clk 0:01:16.8]} 24. Nxd5 {[%clk 0:01:30.1]} 24... Rxb1 {[%clk
0:01:17.5]} 25. Nxe7+ {[%clk 0:01:31.3]} 25... Kf8 {[%clk 0:01:19.1]} 26. Rxb1
{[%clk 0:01:32.9]} 26... Kxe7 {[%clk 0:01:19.7]} 27. Rb4 {[%clk 0:01:33.9]}
27... Ra8 {[%clk 0:01:13]} 28. Rb1 {[%clk 0:01:19.8]} 28... Nd5 {[%clk 0:01:10]}
29. Bd2 {[%clk 0:01:20.2]} 29... Rc8 {[%clk 0:01:05.7]} 30. Be4 {[%clk
0:01:15.7]} 30... f5 {[%clk 0:00:56.5]} 31. Bxd5 {[%clk 0:01:15.7]} 31... exd5
{[%clk 0:00:57.2]} 32. Bb4+ {[%clk 0:01:17.1]} 32... Kf6 {[%clk 0:00:45.2]} 33.
Bc5 {[%clk 0:01:19]} 33... Bh5 {[%clk 0:00:42.6]} 34. f3 {[%clk 0:01:16.8]}
34... g5 {[%clk 0:00:22.5]} 35. Kf2 {[%clk 0:01:11.9]} 35... g4 {[%clk
0:00:21.9]} 36. fxg4 {[%clk 0:01:06.4]} 36... fxg4 {[%clk 0:00:22.9]} 37. h4
{[%clk 0:01:07.9]} 37... Bg6 {[%clk 0:00:22.9]} 38. Rc1 {[%clk 0:00:58.5]} 38...
Kf5 {[%clk 0:00:18.5]} 39. Kg3 {[%clk 0:00:56.1]} 39... Ke4 {[%clk 0:00:17.7]}
40. Re1+ {[%clk 0:00:55.4]} 40... Kd3 {[%clk 0:00:17.9]} 41. Re7 {[%clk
0:00:57.3]} 41... Rb8 {[%clk 0:00:07.6]} 42. Ba7 {[%clk 0:00:55]} 42... Ra8
{[%clk 0:00:06.9]} 43. Rxb7 {[%clk 0:00:55.8]} 43... Kc4 {[%clk 0:00:08.4]} 44.
Bc5 {[%clk 0:00:55.2]} 44... Be8 {[%clk 0:00:09.5]} 45. b6 {[%clk 0:00:55.7]}
45... Kb5 {[%clk 0:00:10.7]} 46. Rxh7 {[%clk 0:00:54]} 46... Bc6 {[%clk
0:00:09.9]} 47. h5 {[%clk 0:00:53.8]} 47... Re8 {[%clk 0:00:10.9]} 48. h6 {[%clk
0:00:54.5]} 48... Re3+ {[%clk 0:00:11.7]} 49. Kxg4 {[%clk 0:00:54.5]} 49... Rb3
{[%clk 0:00:12.8]} 50. Rc7 {[%clk 0:00:50.3]} 1-0

[Event "*** Titled Tuesday Blitz"]
[Site "Chess.com"]
[Date "2019.04.02"]
[Round "9"]
[White "STAYFlow"]
[Black "GM_RobertoMogranzini"]
[Result "0-1"]
[WhiteElo "2252"]
[BlackElo "2461"]
[TimeControl "180+2"]
[EndTime "16:04:59 PDT"]
[Termination "GM_RobertoMogranzini won by resignation"]

1. d4 {[%clk 0:03:01.9]} 1... Nf6 {[%clk 0:02:59.3]} 2. c4 {[%clk 0:03:02.7]}
2... c5 {[%clk 0:03:00.7]} 3. d5 {[%clk 0:03:01.8]} 3... b5 {[%clk 0:03:02]} 4.
cxb5 {[%clk 0:03:02.8]} 4... a6 {[%clk 0:03:03.1]} 5. bxa6 {[%clk 0:03:03.9]}
5... d6 {[%clk 0:03:04.3]} 6. Nc3 {[%clk 0:03:03.4]} 6... Bxa6 {[%clk
0:03:05.1]} 7. Nf3 {[%clk 0:03:03.1]} 7... g6 {[%clk 0:03:06]} 8. g3 {[%clk
0:03:04.5]} 8... Bg7 {[%clk 0:03:07.4]} 9. Bg2 {[%clk 0:03:06.2]} 9... Nbd7
{[%clk 0:03:08.8]} 10. O-O {[%clk 0:03:07.2]} 10... Nb6 {[%clk 0:03:09.9]} 11.
Rb1 {[%clk 0:03:05.9]} 11... Nc4 {[%clk 0:02:54.9]} 12. b3 {[%clk 0:03:01.3]}
12... Qa5 {[%clk 0:02:55.7]} 13. Na4 {[%clk 0:02:46.7]} 13... Bb5 {[%clk
0:02:55.1]} 14. bxc4 {[%clk 0:02:13.5]} 14... Bxa4 {[%clk 0:02:51.5]} 15. Qd2
{[%clk 0:02:04.5]} 15... Qa6 {[%clk 0:02:47.3]} 16. Qd3 {[%clk 0:01:54]} 16...
Bd7 {[%clk 0:02:46.4]} 17. e4 {[%clk 0:01:49.4]} 17... Qxa2 {[%clk 0:02:31]} 18.
Bb2 {[%clk 0:01:27.7]} 18... O-O {[%clk 0:02:29]} 19. Bc3 {[%clk 0:01:17.8]}
19... Ra3 {[%clk 0:01:58.5]} 20. Ra1 {[%clk 0:01:03.9]} 20... Qb3 {[%clk
0:01:56]} 21. Rxa3 {[%clk 0:01:03.9]} 21... Qxa3 {[%clk 0:01:57.9]} 22. Ra1
{[%clk 0:00:55.3]} 22... Qb3 {[%clk 0:01:58.8]} 23. Nd2 {[%clk 0:00:51.4]} 23...
Qb7 {[%clk 0:01:56.8]} 24. h3 {[%clk 0:00:47.3]} 24... Ra8 {[%clk 0:01:56.5]}
25. Rxa8+ {[%clk 0:00:45.2]} 25... Qxa8 {[%clk 0:01:58.4]} 26. e5 {[%clk
0:00:46.3]} 26... Ne8 {[%clk 0:01:49.5]} 27. e6 {[%clk 0:00:41.8]} 27... fxe6
{[%clk 0:01:46.5]} 28. dxe6 {[%clk 0:00:38.3]} 28... Bc6 {[%clk 0:01:48]} 29.
Bxc6 {[%clk 0:00:32.9]} 29... Qxc6 {[%clk 0:01:49.9]} 30. Ne4 {[%clk 0:00:26.2]}
30... Bxc3 {[%clk 0:01:45.8]} 31. Nxc3 {[%clk 0:00:26.6]} 31... Nf6 {[%clk
0:01:47.7]} 32. Nd5 {[%clk 0:00:15.1]} 32... Nxd5 {[%clk 0:01:48.4]} 33. cxd5
{[%clk 0:00:17]} 33... Qa8 {[%clk 0:01:44.5]} 34. Qf3 {[%clk 0:00:17.7]} 34...
Qf8 {[%clk 0:01:46.1]} 35. Qa3 {[%clk 0:00:12.8]} 35... Qf5 {[%clk 0:01:43.8]}
36. Qa8+ {[%clk 0:00:10.3]} 36... Kg7 {[%clk 0:01:44.9]} 37. Qe8 {[%clk
0:00:10.2]} 37... Qf6 {[%clk 0:01:43.7]} 38. Qc6 {[%clk 0:00:08.8]} 38... Qd4
{[%clk 0:01:38.7]} 39. Qe8 {[%clk 0:00:08.7]} 39... Qf6 {[%clk 0:01:39.1]} 40.
Qc6 {[%clk 0:00:09.8]} 40... Qf8 {[%clk 0:01:29.7]} 41. Kg2 {[%clk 0:00:06.8]}
41... h5 {[%clk 0:01:29.7]} 42. Kg1 {[%clk 0:00:07.7]} 42... h4 {[%clk
0:01:27.9]} 43. gxh4 {[%clk 0:00:08.2]} 43... Qf6 {[%clk 0:01:27.9]} 44. Qe8
{[%clk 0:00:05.7]} 44... c4 {[%clk 0:01:28.3]} 45. Qc8 {[%clk 0:00:04.2]} 45...
c3 {[%clk 0:01:29.2]} 46. Kf1 {[%clk 0:00:04.7]} 46... Qd4 {[%clk 0:01:28.8]}
47. Qc7 {[%clk 0:00:05.2]} 47... Kf6 {[%clk 0:01:29.3]} 48. Qc8 {[%clk
0:00:05.5]} 48... Qxd5 {[%clk 0:01:29.1]} 49. Qh8+ {[%clk 0:00:06.6]} 49... Kxe6
{[%clk 0:01:29.9]} 50. Qg8+ {[%clk 0:00:03.1]} 50... Ke5 {[%clk 0:01:30.9]} 51.
f4+ {[%clk 0:00:04.7]} 51... Ke4 {[%clk 0:01:30.8]} 52. Qxg6+ {[%clk 0:00:06]}
52... Ke3 {[%clk 0:01:27.4]} 53. Qg3+ {[%clk 0:00:04.9]} 53... Kd2 {[%clk
0:01:28.4]} 54. Qf2+ {[%clk 0:00:05.3]} 54... Kd1 {[%clk 0:01:26.8]} 55. h5
{[%clk 0:00:06.6]} 55... Qd3+ {[%clk 0:01:27]} 56. Kg2 {[%clk 0:00:07.4]} 56...
c2 {[%clk 0:01:27.9]} 57. h6 {[%clk 0:00:08.3]} 57... c1=Q {[%clk 0:01:28.5]}
0-1

[Event "*** Titled Tuesday Blitz"]
[Site "Chess.com"]
[Date "2019.04.02"]
[Round "9"]
[White "Alex_Molchanov"]
[Black "Twiceblessed"]
[Result "0-1"]
[WhiteElo "2476"]
[BlackElo "2579"]
[TimeControl "180+2"]
[EndTime "16:05:02 PDT"]
[Termination "Twiceblessed won by resignation"]

1. c4 {[%clk 0:03:01.9]} 1... Nf6 {[%clk 0:03:00.8]} 2. Nf3 {[%clk 0:02:59.9]}
2... e6 {[%clk 0:03:01.9]} 3. g3 {[%clk 0:02:58]} 3... d5 {[%clk 0:03:02.9]} 4.
Bg2 {[%clk 0:02:59.3]} 4... Be7 {[%clk 0:03:04.3]} 5. O-O {[%clk 0:02:59.5]}
5... O-O {[%clk 0:03:05.8]} 6. b3 {[%clk 0:03:01.1]} 6... b6 {[%clk 0:03:07.1]}
7. Bb2 {[%clk 0:03:01.1]} 7... c5 {[%clk 0:03:07.8]} 8. e3 {[%clk 0:03:01.4]}
8... Ba6 {[%clk 0:03:08]} 9. Qe2 {[%clk 0:02:57.9]} 9... Nc6 {[%clk 0:03:09.1]}
10. d3 {[%clk 0:02:49.9]} 10... Qd7 {[%clk 0:03:09.6]} 11. Nc3 {[%clk
0:02:42.1]} 11... Rfd8 {[%clk 0:03:10.3]} 12. Rad1 {[%clk 0:02:41.9]} 12... Rac8
{[%clk 0:03:06.9]} 13. Ba1 {[%clk 0:02:36]} 13... d4 {[%clk 0:03:02.3]} 14. exd4
{[%clk 0:02:36.6]} 14... cxd4 {[%clk 0:03:01.5]} 15. Ne4 {[%clk 0:02:10.3]}
15... e5 {[%clk 0:02:58.8]} 16. Nxf6+ {[%clk 0:02:02.2]} 16... Bxf6 {[%clk
0:02:59.6]} 17. Nd2 {[%clk 0:02:00.7]} 17... b5 {[%clk 0:02:49]} 18. Ne4 {[%clk
0:01:42.6]} 18... Be7 {[%clk 0:02:49.4]} 19. f4 {[%clk 0:01:39.2]} 19... bxc4
{[%clk 0:02:35.4]} 20. bxc4 {[%clk 0:01:36.7]} 20... exf4 {[%clk 0:02:27.1]} 21.
Rxf4 {[%clk 0:01:33.2]} 21... Ne5 {[%clk 0:02:23.5]} 22. Qh5 {[%clk 0:01:27.4]}
22... Qc7 {[%clk 0:02:09.2]} 23. Ng5 {[%clk 0:00:48.1]} 23... Bxg5 {[%clk
0:02:06.7]} 24. Qxg5 {[%clk 0:00:50]} 24... Ng6 {[%clk 0:01:41.3]} 25. Rxd4
{[%clk 0:00:48.1]} 25... Qb6 {[%clk 0:01:42.4]} 26. c5 {[%clk 0:00:49.4]} 26...
Qa5 {[%clk 0:01:33.1]} 27. Rxd8+ {[%clk 0:00:38.3]} 27... Rxd8 {[%clk 0:01:35]}
28. Bc3 {[%clk 0:00:31.8]} 28... Qc7 {[%clk 0:01:35.7]} 29. d4 {[%clk
0:00:31.8]} 29... h6 {[%clk 0:01:35.9]} 30. Qe3 {[%clk 0:00:30.8]} 30... Bb5
{[%clk 0:01:24.4]} 31. d5 {[%clk 0:00:29.8]} 31... Re8 {[%clk 0:01:25.5]} 32.
Qd4 {[%clk 0:00:30.3]} 32... Ne5 {[%clk 0:01:20.6]} 33. d6 {[%clk 0:00:25.9]}
33... Qd7 {[%clk 0:01:21.4]} 34. c6 {[%clk 0:00:21.3]} 34... Bxc6 {[%clk
0:01:21.8]} 35. Re1 {[%clk 0:00:13.7]} 35... f6 {[%clk 0:01:22.6]} 36. Bd5+
{[%clk 0:00:13.5]} 36... Kh8 {[%clk 0:01:23.3]} 37. Kg2 {[%clk 0:00:14.3]} 37...
Qxd6 {[%clk 0:01:23.5]} 38. Rd1 {[%clk 0:00:12.8]} 38... Rd8 {[%clk 0:01:19.1]}
39. Be4 {[%clk 0:00:05.6]} 39... Qxd4 {[%clk 0:01:14.6]} 40. Rxd4 {[%clk
0:00:07.5]} 40... Rxd4 {[%clk 0:01:15.4]} 41. Bxd4 {[%clk 0:00:09.4]} 41...
Bxe4+ {[%clk 0:01:16.1]} 42. Kf2 {[%clk 0:00:11.1]} 42... Bd5 {[%clk 0:01:15.5]}
43. Bxa7 {[%clk 0:00:12.1]} 43... Bxa2 {[%clk 0:01:16.3]} 44. Ke3 {[%clk
0:00:12.3]} 44... Ng4+ {[%clk 0:01:16.4]} 45. Kf4 {[%clk 0:00:12.3]} 45... Nxh2
{[%clk 0:01:17]} 46. Bg1 {[%clk 0:00:12.3]} 46... Nf1 {[%clk 0:01:17.3]} 47. Bd4
{[%clk 0:00:11.3]} 47... Nd2 {[%clk 0:01:06.4]} 48. Bc3 {[%clk 0:00:11.5]} 48...
Nc4 {[%clk 0:01:06.5]} 49. Kf5 {[%clk 0:00:12.3]} 49... Kh7 {[%clk 0:01:06.8]}
50. Bd4 {[%clk 0:00:11.9]} 50... Nd6+ {[%clk 0:01:07.4]} 51. Kf4 {[%clk
0:00:12.6]} 51... g5+ {[%clk 0:01:07.6]} 52. Kg4 {[%clk 0:00:12.8]} 52... Kg6
{[%clk 0:01:09]} 53. Bc5 {[%clk 0:00:13.5]} 53... h5+ {[%clk 0:01:08.5]} 54. Kf3
{[%clk 0:00:14]} 54... Bd5+ {[%clk 0:01:09.4]} 55. Kf2 {[%clk 0:00:14.4]} 55...
Ne4+ {[%clk 0:01:10.4]} 0-1

[Event "*** Titled Tuesday Blitz"]
[Site "Chess.com"]
[Date "2019.04.02"]
[Round "9"]
[White "NikolaN98"]
[Black "Roenko_Artur"]
[Result "1-0"]
[WhiteElo "2528"]
[BlackElo "2277"]
[TimeControl "180+2"]
[EndTime "16:05:02 PDT"]
[Termination "NikolaN98 won on time"]

1. e4 {[%clk 0:03:01.7]} 1... e6 {[%clk 0:02:59.7]} 2. d4 {[%clk 0:03:02.3]}
2... d5 {[%clk 0:03:01.2]} 3. Nc3 {[%clk 0:03:03.9]} 3... Bb4 {[%clk 0:03:01.3]}
4. e5 {[%clk 0:03:04.9]} 4... c5 {[%clk 0:03:01.9]} 5. a3 {[%clk 0:03:05.8]}
5... Bxc3+ {[%clk 0:03:03.3]} 6. bxc3 {[%clk 0:03:07.6]} 6... Ne7 {[%clk
0:03:04.7]} 7. Qg4 {[%clk 0:03:08.2]} 7... cxd4 {[%clk 0:03:05.8]} 8. cxd4
{[%clk 0:03:08.6]} 8... Qc7 {[%clk 0:03:05.6]} 9. Bd2 {[%clk 0:02:41.7]} 9...
Qxc2 {[%clk 0:03:05.6]} 10. Qxg7 {[%clk 0:02:29.5]} 10... Rg8 {[%clk 0:03:06.5]}
11. Qh6 {[%clk 0:02:21.7]} 11... Nbc6 {[%clk 0:03:05.9]} 12. Nf3 {[%clk
0:02:11.4]} 12... Qe4+ {[%clk 0:02:55.7]} 13. Qe3 {[%clk 0:02:10.6]} 13... Nf5
{[%clk 0:02:55.6]} 14. Qxe4 {[%clk 0:02:10.5]} 14... dxe4 {[%clk 0:02:56.6]} 15.
Ng5 {[%clk 0:02:05.7]} 15... Nfxd4 {[%clk 0:02:57.4]} 16. Rc1 {[%clk 0:01:44.8]}
16... Nb3 {[%clk 0:02:37.5]} 17. Nxe4 {[%clk 0:01:33.4]} 17... Nxc1 {[%clk
0:02:35.9]} 18. Nf6+ {[%clk 0:01:34]} 18... Kf8 {[%clk 0:02:30.7]} 19. Nxg8
{[%clk 0:01:12.4]} 19... Kxg8 {[%clk 0:02:31]} 20. Bxc1 {[%clk 0:01:12.8]} 20...
Nxe5 {[%clk 0:02:32.3]} 21. f4 {[%clk 0:01:09.4]} 21... Nc6 {[%clk 0:02:22.6]}
22. Bd3 {[%clk 0:01:08.5]} 22... Bd7 {[%clk 0:02:17.4]} 23. Bb2 {[%clk
0:01:08.1]} 23... Rc8 {[%clk 0:02:09.6]} 24. Ke2 {[%clk 0:01:07.3]} 24... Ne7
{[%clk 0:02:09.9]} 25. Kd2 {[%clk 0:00:57.2]} 25... Bc6 {[%clk 0:02:07.1]} 26.
Re1 {[%clk 0:00:54.7]} 26... Nd5 {[%clk 0:02:00.9]} 27. g3 {[%clk 0:00:49.5]}
27... h6 {[%clk 0:01:52.5]} 28. Re5 {[%clk 0:00:49.3]} 28... Rd8 {[%clk
0:01:45.4]} 29. Ke2 {[%clk 0:00:41.5]} 29... a6 {[%clk 0:00:47.8]} 30. Rh5
{[%clk 0:00:41]} 30... f6 {[%clk 0:00:31.2]} 31. Rxh6 {[%clk 0:00:37.4]} 31...
Kg7 {[%clk 0:00:28.7]} 32. Rh7+ {[%clk 0:00:37.9]} 32... Kg8 {[%clk 0:00:29.8]}
33. h4 {[%clk 0:00:20.4]} 33... b5 {[%clk 0:00:23.5]} 34. h5 {[%clk 0:00:20.2]}
34... a5 {[%clk 0:00:18.4]} 35. Ra7 {[%clk 0:00:20.1]} 35... b4 {[%clk
0:00:13.9]} 36. h6 {[%clk 0:00:20.5]} 36... bxa3 {[%clk 0:00:13.6]} 37. h7+
{[%clk 0:00:17.5]} 37... Kh8 {[%clk 0:00:14.4]} 38. Ba1 {[%clk 0:00:19]} 38...
a2 {[%clk 0:00:13.6]} 39. Be4 {[%clk 0:00:19.2]} 39... Bb5+ {[%clk 0:00:13.5]}
40. Kf2 {[%clk 0:00:19.7]} 40... e5 {[%clk 0:00:05.8]} 41. fxe5 {[%clk
0:00:20.3]} 1-0